[Event "6th Cattolica Open 2019"]
[Site "Cattolica"]
[Date "2019.06.14"]
[Round "9.5"]
[White "Arjun Kalyan"]
[Black "Fedorchuk, Sergey A."]
[Result "0-1"]
[ECO "B80"]
[WhiteElo "2484"]
[BlackElo "2631"]
[Annotator "RC"]
[PlyCount "86"]
[EventDate "2019.06.08"]
[EventType "swiss"]
[EventCountry "ITA"]
[SourceTitle "playchess.com"]
[Source "ChessBase"]
[SourceQuality "1"]
[TimeControl "40/5400+30:900+30"]

1. e4 {[%emt 0:00:18]} c5 {[%emt 0:00:00]} 2. Nf3 {[%emt 0:00:21]} e6 {[%emt 0:00:20]} 3. d4 {[%emt 0:00:12]} cxd4 {[%emt 0:00:19]} 4. Nxd4 {[%emt 0:00:09]} Nc6 {[%emt 0:00:38]} 5. Nc3 {[%emt 0:00:11]} a6 {[%emt 0:01:25]} 6. g3 {[%emt 0:00:42]} d6 {[%emt 0:02:00]} 7. Bg2 {[%emt 0:01:31]} Bd7 {[%emt 0:00:59]} 8. O-O {[%emt 0:01:43]} Be7 {[%emt 0:00:41]} 9. f4 {[%emt 0:06:55]} Nf6 {[%emt 0:05:15]} 10. Be3 {[%emt 0:01:25]} Rc8 {[%emt 0:00:40]} 11. Qe2 {[%emt 0:02:55]} O-O {[%emt 0:05:54]} 12. Rad1 {[%emt 0:02:33]} Qc7 {[%emt 0:00:26]} 13. Nxc6 {[%emt 0:19:14]} Bxc6 {[%emt 0:00:50]} 14. g4 {[%emt 0:10:49]} b5 {[%emt 0:01:58]} 15. g5 {[%emt 0:01:00]} Nd7 {[%emt 0:00:06]} 16. a3 {[%emt 0:02:05]} Rfe8 {[%emt 0:02:07]} 17. Qh5 {[%emt 0:03:54]} Bf8 {[%emt 0:05:15]} 18. Bd4 {[%emt 0:03:34]} g6 {[%emt 0:18:48]} 19. Qh4 {[%emt 0:04:52]} e5 {[%emt 0:00:34]} 20. fxe5 {[%emt 0:01:12]} Nxe5 {[%emt 0:00:07]} 21. Rf6 {[%emt 0:06:38]} Bg7 {[%emt 0:02:30]} 22. Bxe5 {[%emt 0:02:27]} Rxe5 {[%emt 0:05:56]} 23. Rfxd6 {[%emt 0:00:03]} Bf8 {[%emt 0:00:36]} 24. R6d3 {[%emt 0:02:50]} Be7 {[%emt 0:00:35]} 25. Rg3 {[%emt 0:00:53]} Bc5+ {[%emt 0:10:24]} 26. Kf1 {[%emt 0:02:14]} Rf8 {[%emt 0:01:07]} 27. Rh3 {[%emt 0:02:11]} f6 {[%emt 0:01:37]} 28. gxf6 {[%emt 0:00:10]} Rh5 {[%emt 0:00:19]} 29. Qg4 {[%emt 0:01:58]} Rxf6+ {[%emt 0:00:10]} 30. Bf3 {[%emt 0:00:17]} Qf4 {[%emt 0:06:09]} 31. Qc8+ {[%emt 0:10:58]} Kg7 {[%emt 0:02:34]} 32. Rd3 {[%emt 0:02:52]} Qc1+ {[%emt 0:10:04]} 33. Ke2 {[%emt 0:01:03]} Rxh3 {[%emt 0:01:09]} 34. Qxh3 {[%emt 0:00:02]} Qxb2 {[%emt 0:00:07]} 35. Kd2 {[%emt 0:02:13]} Bxa3 {[%emt 0:00:44]} 36. Bd1 {[%emt 0:02:09]} Qc1+ {[%emt 0:07:55]} 37. Ke1 {[%emt 0:00:10]} Qg5 {[%emt 0:05:18]} 38. Bf3 {[%emt 0:02:10]} Bb4 {[%emt 0:01:26]} 39. Qc8 {[%emt 0:02:02]} Qc5 {[%emt 0:01:53]} 40. Kd2 {[%emt 0:00:00]} Rf7 {[%emt 0:00:00]} 41. Qxa6 {[%emt 0:02:45]} Rd7 {[%emt 0:06:23]} 42. Qa1 {[%emt 0:01:20]} Ra7 {[%emt 0:00:12]} 43. Qe1 {[%emt 0:00:40]} Ra3 {[%emt 0:00:08]} 0-1

[Event "6th Cattolica Open 2019"]
[Site "Cattolica"]
[Date "2019.06.14"]
[Round "9.6"]
[White "Rychagov, Andrey"]
[Black "Epishin, Vladimir"]
[Result "1-0"]
[ECO "E15"]
[WhiteElo "2520"]
[BlackElo "2564"]
[Annotator "ChessBase"]
[PlyCount "107"]
[EventDate "2019.06.08"]
[EventType "swiss"]
[EventCountry "ITA"]
[SourceTitle "playchess.com"]
[Source "ChessBase"]
[SourceQuality "1"]
[TimeControl "40/5400+30:900+30"]

1. d4 {[%emt 0:00:00]} Nf6 {[%emt 0:00:00]} 2. c4 {[%emt 0:00:00]} e6 {[%emt 0:00:41]} 3. Nf3 {[%emt 0:00:40]} b6 {[%emt 0:01:06]} 4. g3 {[%emt 0:00:58]} Ba6 {[%emt 0:04:01]} 5. Qa4 {[%emt 0:04:59]} Bb7 {[%emt 0:03:11]} 6. Bg2 {[%emt 0:00:21]} g6 {[%emt 0:01:45]} 7. Nc3 {[%emt 0:05:12]} Bg7 {[%emt 0:00:19]} 8. O-O {[%emt 0:05:35]} O-O {[%emt 0:05:24]} 9. Qc2 {[%emt 0:10:53]} d6 {[%emt 0:09:09]} 10. e4 {[%emt 0:01:56]} Nbd7 {[%emt 0:00:38]} 11. Rd1 {[%emt 0:04:03]} Qe8 {[%emt 0:10:57]} 12. h3 {[%emt 0:04:24]} Kh8 {[%emt 0:02:01]} 13. e5 {[%emt 0:08:51]} dxe5 {[%emt 0:00:19]} 14. dxe5 {[%emt 0:00:03]} Ng8 {[%emt 0:00:10]} 15. Bf4 {[%emt 0:00:20]} Rd8 {[%emt 0:03:05]} 16. Qe2 {[%emt 0:02:26]} Qe7 {[%emt 0:03:18]} 17. h4 {[%emt 0:05:50]} Bxf3 {[%emt 0:03:50]} 18. Bxf3 {[%emt 0:00:08]} Bh6 {[%emt 0:00:19]} 19. Bxh6 {[%emt 0:07:19]} Nxh6 {[%emt 0:02:21]} 20. Rd2 {[%emt 0:03:05]} Nf5 {[%emt 0:06:28]} 21. Rad1 {[%emt 0:01:08]} a6 {[%emt 0:02:29]} 22. Bc6 {[%emt 0:03:42]} Nb8 {[%emt 0:00:50]} 23. Be4 {[%emt 0:00:16]} Kg7 {[%emt 0:04:49]} 24. a3 {[%emt 0:05:13]} a5 {[%emt 0:03:19]} 25. Nb5 {[%emt 0:01:58]} h5 {[%emt 0:07:25]} 26. Bxf5 {[%emt 0:08:16]} exf5 {[%emt 0:00:23]} 27. Rxd8 {[%emt 0:00:23]} Rxd8 {[%emt 0:00:03]} 28. Rxd8 {[%emt 0:00:06]} Qxd8 {[%emt 0:00:23]} 29. e6 {[%emt 0:00:08]} Nc6 {[%emt 0:07:29]} 30. e7 {[%emt 0:03:38]} Nxe7 {[%emt 0:01:04]} 31. Qe5+ {[%emt 0:00:13]} f6 {[%emt 0:00:36]} 32. Qxc7 {[%emt 0:00:28]} Qxc7 {[%emt 0:01:25]} 33. Nxc7 {[%emt 0:00:03]} g5 {[%emt 0:00:15]} 34. b4 {[%emt 0:02:03]} axb4 {[%emt 0:00:38]} 35. axb4 {[%emt 0:00:03]} f4 {[%emt 0:01:08]} 36. gxf4 {[%emt 0:01:41]} gxh4 {[%emt 0:00:41]} 37. Kg2 {[%emt 0:00:49]} Kg6 {[%emt 0:00:29]} 38. Nd5 {[%emt 0:01:56]} Nc8 {[%emt 0:03:39]} 39. Kh3 {[%emt 0:03:21]} Kf5 {[%emt 0:00:02]} 40. Kxh4 {[%emt 0:00:00]} Ke4 {[%emt 0:00:00]} 41. Kxh5 {[%emt 0:01:23]} b5 {[%emt 0:00:41]} 42. Nc3+ {[%emt 0:02:40]} Kd4 {[%emt 0:00:25]} 43. Nxb5+ {[%emt 0:00:49]} Kxc4 {[%emt 0:00:04]} 44. Nc7 {[%emt 0:01:25]} Kxb4 {[%emt 0:29:41]} 45. Kg6 {[%emt 0:00:11]} Kc5 {[%emt 0:00:00]} 46. Kxf6 {[%emt 0:00:36]} Kd6 {[%emt 0:00:00]} 47. Nb5+ {[%emt 0:01:36]} Kd7 {[%emt 0:00:00]} 48. f5 {[%emt 0:01:19]} Ne7 {[%emt 0:00:00]} 49. Nd4 {[%emt 0:00:46]} Nd5+ {[%emt 0:00:00]} 50. Kg7 {[%emt 0:00:30]} Ke7 {[%emt 0:00:00]} 51. Nc6+ {[%emt 0:00:31]} Kd6 {[%emt 0:00:00]} 52. f6 {[%emt 0:00:35]} Nf4 {[%emt 0:00:00]} 53. f7 {[%emt 0:01:20]} Ne6+ {[%emt 0:00:00]} 54. Kg8 {[%emt 0:01:58]} 1-0

[Event "6th Cattolica Open 2019"]
[Site "Cattolica"]
[Date "2019.06.14"]
[Round "9.7"]
[White "Romanishin, Oleg M"]
[Black "Vovk, Yuri"]
[Result "0-1"]
[ECO "A87"]
[WhiteElo "2451"]
[BlackElo "2586"]
[Annotator "ChessBase"]
[PlyCount "126"]
[EventDate "2019.06.08"]
[EventType "swiss"]
[EventCountry "ITA"]
[SourceTitle "playchess.com"]
[Source "ChessBase"]
[SourceQuality "1"]
[TimeControl "40/5400+30:900+30"]

1. d4 {[%emt 0:01:59]} f5 {[%emt 0:00:00]} 2. g3 {[%emt 0:00:42]} Nf6 {[%emt 0:00:00]} 3. Bg2 {[%emt 0:00:06]} g6 {[%emt 0:00:03]} 4. Nf3 {[%emt 0:00:13]} Bg7 {[%emt 0:00:07]} 5. O-O {[%emt 0:00:04]} O-O {[%emt 0:00:04]} 6. b3 {[%emt 0:00:20]} d6 {[%emt 0:00:10]} 7. Bb2 {[%emt 0:00:07]} c6 {[%emt 0:00:10]} 8. c4 {[%emt 0:00:16]} Qc7 {[%emt 0:00:40]} 9. Nbd2 {[%emt 0:10:38]} a5 {[%emt 0:00:08]} 10. Qc2 {[%emt 0:03:34]} Na6 {[%emt 0:00:09]} 11. a3 {[%emt 0:00:39]} Bd7 {[%emt 0:00:06]} 12. Rac1 {[%emt 0:09:06]} Rae8 {[%emt 0:00:08]} 13. c5 {[%emt 0:06:27]} Bh6 {[%emt 0:10:54]} 14. e3 {[%emt 0:08:34]} Be6 {[%emt 0:00:04]} 15. Nc4 {[%emt 0:05:49]} Ne4 {[%emt 0:11:22]} 16. Nfd2 {[%emt 0:02:41]} d5 {[%emt 0:05:00]} 17. Ne5 {[%emt 0:02:08]} Bg7 {[%emt 0:02:14]} 18. Nd3 {[%emt 0:00:44]} g5 {[%emt 0:05:08]} 19. f3 {[%emt 0:00:47]} Nf6 {[%emt 0:02:34]} 20. f4 {[%emt 0:02:43]} g4 {[%emt 0:02:29]} 21. Ne5 {[%emt 0:01:04]} Nd7 {[%emt 0:01:03]} 22. Nd3 {[%emt 0:00:40]} h5 {[%emt 0:01:18]} 23. h4 {[%emt 0:02:33]} gxh3 {[%emt 0:00:56]} 24. Bxh3 {[%emt 0:00:25]} Nf6 {[%emt 0:01:00]} 25. Ne5 {[%emt 0:04:09]} Ng4 {[%emt 0:00:16]} 26. Bxg4 {[%emt 0:06:41]} hxg4 {[%emt 0:01:03]} 27. Kg2 {[%emt 0:00:58]} Bxe5 {[%emt 0:02:55]} 28. fxe5 {[%emt 0:03:40]} Kg7 {[%emt 0:00:30]} 29. Nb1 {[%emt 0:03:28]} Qd7 {[%emt 0:12:56]} 30. Nc3 {[%emt 0:05:43]} f4 {[%emt 0:00:21]} 31. exf4 {[%emt 0:04:53]} Bf5 {[%emt 0:00:12]} 32. Qe2 {[%emt 0:00:05]} Qe6 {[%emt 0:03:34]} 33. Rh1 {[%emt 0:00:16]} Rh8 {[%emt 0:08:28]} 34. Rxh8 {[%emt 0:02:10]} Rxh8 {[%emt 0:00:02]} 35. Rh1 {[%emt 0:00:09]} Rxh1 {[%emt 0:03:35]} 36. Kxh1 {[%emt 0:00:03]} Nc7 {[%emt 0:10:14]} 37. Kg1 {[%emt 0:01:04]} Qg6 {[%emt 0:00:07]} 38. Nd1 {[%emt 0:00:54]} Ne6 {[%emt 0:10:03]} 39. Ne3 {[%emt 0:03:55]} Kf7 {[%emt 0:00:05]} 40. Bc3 {[%emt 0:00:00]} Ke8 {[%emt 0:00:00]} 41. a4 {[%emt 0:08:29]} Kd7 {[%emt 0:11:03]} 42. Qf2 {[%emt 0:01:02]} Ke8 {[%emt 0:03:01]} 43. Qe2 {[%emt 0:02:03]} Kf7 {[%emt 0:02:04]} 44. Qf2 {[%emt 0:00:40]} Kg8 {[%emt 0:00:28]} 45. Qe2 {[%emt 0:00:52]} Kf8 {[%emt 0:01:08]} 46. Qf2 {[%emt 0:01:04]} Kf7 {[%emt 0:00:16]} 47. Qe2 {[%emt 0:01:58]} Kg8 {[%emt 0:00:21]} 48. Qf2 {[%emt 0:00:14]} Be4 {[%emt 0:01:01]} 49. Qe2 {[%emt 0:06:50]} Bf3 {[%emt 0:03:22]} 50. Qc2 {[%emt 0:00:09]} Qg7 {[%emt 0:02:03]} 51. Qf5 {[%emt 0:01:08]} Qh6 {[%emt 0:00:06]} 52. Ng2 {[%emt 0:01:12]} Ng7 {[%emt 0:03:31]} 53. Qc8+ {[%emt 0:00:11]} Kf7 {[%emt 0:00:10]} 54. Nh4 {[%emt 0:00:30]} Ne6 {[%emt 0:00:07]} 55. Kf2 {[%emt 0:03:31]} Be4 {[%emt 0:00:06]} 56. f5 {[%emt 0:00:43]} Bxf5 {[%emt 0:00:28]} 57. Nxf5 {[%emt 0:00:07]} Qh2+ {[%emt 0:00:02]} 58. Ke1 {[%emt 0:01:47]} Qg1+ {[%emt 0:00:07]} 59. Kd2 {[%emt 0:00:48]} Qf2+ {[%emt 0:00:05]} 60. Kc1 {[%emt 0:00:28]} Qxf5 {[%emt 0:00:10]} 61. Qxb7 {[%emt 0:00:28]} Qd3 {[%emt 0:01:51]} 62. Bb2 {[%emt 0:00:34]} Qxg3 {[%emt 0:00:21]} 63. Qxc6 {[%emt 0:00:26]} Qf3 {[%emt 0:01:56]} 0-1

[Event "6th Cattolica Open 2019"]
[Site "Cattolica"]
[Date "2019.06.14"]
[Round "9.8"]
[White "Soto, Miguel Angel"]
[Black "Sonis, Francesco"]
[Result "1-0"]
[ECO "C77"]
[WhiteElo "2217"]
[BlackElo "2494"]
[Annotator "ChessBase"]
[PlyCount "95"]
[EventDate "2019.06.08"]
[EventType "swiss"]
[EventCountry "ITA"]
[SourceTitle "playchess.com"]
[Source "ChessBase"]
[SourceQuality "1"]
[TimeControl "40/5400+30:900+30"]

1. e4 {[%emt 0:10:05]} e5 {[%emt 0:00:00]} 2. Nf3 {[%emt 0:00:08]} Nc6 {[%emt 0:00:00]} 3. Bb5 {[%emt 0:01:21]} a6 {[%emt 0:00:00]} 4. Ba4 {[%emt 0:00:49]} Nf6 {[%emt 0:00:14]} 5. d3 {[%emt 0:00:38]} d6 {[%emt 0:00:17]} 6. c3 {[%emt 0:01:26]} h6 {[%emt 0:00:32]} 7. O-O {[%emt 0:01:54]} g5 {[%emt 0:00:05]} 8. Re1 {[%emt 0:05:56]} Bg7 {[%emt 0:02:42]} 9. d4 {[%emt 0:06:13]} Bd7 {[%emt 0:04:29]} 10. d5 {[%emt 0:09:41]} Ne7 {[%emt 0:00:04]} 11. Bxd7+ {[%emt 0:00:50]} Qxd7 {[%emt 0:00:05]} 12. Nbd2 {[%emt 0:03:28]} Ng6 {[%emt 0:04:07]} 13. Nf1 {[%emt 0:00:59]} g4 {[%emt 0:00:59]} 14. N3d2 {[%emt 0:00:29]} h5 {[%emt 0:00:04]} 15. Ng3 {[%emt 0:02:19]} Bh6 {[%emt 0:00:29]} 16. Ndf1 {[%emt 0:02:39]} Bf4 {[%emt 0:02:27]} 17. Qc2 {[%emt 0:02:32]} Ne7 {[%emt 0:07:25]} 18. c4 {[%emt 0:04:35]} O-O-O {[%emt 0:05:47]} 19. b4 {[%emt 0:01:28]} Kb8 {[%emt 0:01:00]} 20. a4 {[%emt 0:00:52]} h4 {[%emt 0:05:04]} 21. Ne2 {[%emt 0:01:03]} Ng6 {[%emt 0:04:10]} 22. g3 {[%emt 0:08:44]} Bxc1 {[%emt 0:00:35]} 23. Rexc1 {[%emt 0:00:18]} Nh7 {[%emt 0:08:23]} 24. a5 {[%emt 0:04:06]} Ng5 {[%emt 0:04:25]} 25. b5 {[%emt 0:01:58]} Qe7 {[%emt 0:08:27]} 26. Kg2 {[%emt 0:11:41]} Qf6 {[%emt 0:06:19]} 27. Ng1 {[%emt 0:01:36]} Nf3 {[%emt 0:11:52]} 28. bxa6 {[%emt 0:04:43]} bxa6 {[%emt 0:01:24]} 29. Qb3+ {[%emt 0:03:59]} Ka7 {[%emt 0:01:57]} 30. Nxf3 {[%emt 0:03:26]} gxf3+ {[%emt 0:00:06]} 31. Kh1 {[%emt 0:00:41]} hxg3 {[%emt 0:02:16]} 32. fxg3 {[%emt 0:01:05]} Rb8 {[%emt 0:00:11]} 33. Qe3+ {[%emt 0:00:28]} Ka8 {[%emt 0:00:03]} 34. c5 {[%emt 0:01:42]} Ne7 {[%emt 0:00:55]} 35. Rc3 {[%emt 0:02:01]} Rb2 {[%emt 0:00:49]} 36. cxd6 {[%emt 0:01:01]} Qxd6 {[%emt 0:00:03]} 37. Rac1 {[%emt 0:00:19]} Rb7 {[%emt 0:02:57]} 38. Qxf3 {[%emt 0:00:57]} f6 {[%emt 0:02:40]} 39. R3c2 {[%emt 0:00:41]} Rc8 {[%emt 0:00:46]} 40. Ne3 {[%emt 0:00:00]} Rb3 {[%emt 0:00:00]} 41. Qe2 {[%emt 0:02:27]} Ka7 {[%emt 0:01:36]} 42. Qf2 {[%emt 0:01:52]} Qb4 {[%emt 0:01:16]} 43. Nc4+ {[%emt 0:02:54]} Kb8 {[%emt 0:00:18]} 44. Qxf6 {[%emt 0:01:01]} Rg8 {[%emt 0:00:11]} 45. Qxe5 {[%emt 0:02:15]} Nc8 {[%emt 0:00:10]} 46. Nd2 {[%emt 0:02:16]} Nd6 {[%emt 0:00:12]} 47. Nxb3 {[%emt 0:00:42]} Re8 {[%emt 0:00:05]} 48. Qd4 {[%emt 0:00:36]} 1-0

[Event "6th Cattolica Open 2019"]
[Site "Cattolica"]
[Date "2019.06.14"]
[Round "9.9"]
[White "Ankit, R. Rajpara"]
[Black "Mooser, Stefan"]
[Result "1/2-1/2"]
[ECO "D45"]
[WhiteElo "2447"]
[BlackElo "2215"]
[Annotator "NA"]
[PlyCount "80"]
[EventDate "2019.06.08"]
[EventType "swiss"]
[EventCountry "ITA"]
[SourceTitle "playchess.com"]
[Source "ChessBase"]
[SourceQuality "1"]
[TimeControl "40/5400+30:900+30"]

1. d4 {[%emt 0:00:22]} d5 {[%emt 0:06:04]} 2. c4 {[%emt 0:00:05]} c6 {[%emt 0:00:08]} 3. Nf3 {[%emt 0:00:14]} Nf6 {[%emt 0:00:35]} 4. e3 {[%emt 0:00:26]} e6 {[%emt 0:00:08]} 5. b3 {[%emt 0:00:33]} Nbd7 {[%emt 0:00:23]} 6. Bd3 {[%emt 0:01:15]} Bd6 {[%emt 0:00:07]} 7. Bb2 {[%emt 0:00:30]} O-O {[%emt 0:00:07]} 8. O-O {[%emt 0:00:13]} b6 {[%emt 0:00:04]} 9. Nc3 {[%emt 0:01:16]} Bb7 {[%emt 0:00:27]} 10. Qc2 {[%emt 0:00:20]} Qe7 {[%emt 0:01:03]} 11. Rfe1 {[%emt 0:00:21]} e5 {[%emt 0:08:23]} 12. e4 {[%emt 0:08:04]} dxc4 {[%emt 0:04:08]} 13. Bxc4 {[%emt 0:01:50]} b5 {[%emt 0:03:49]} 14. Bf1 {[%emt 0:14:18]} a6 {[%emt 0:02:56]} 15. g3 {[%emt 0:11:50]} g6 {[%emt 0:04:47]} 16. Bg2 {[%emt 0:00:43]} Rfe8 {[%emt 0:06:30]} 17. a3 {[%emt 0:12:54]} exd4 {[%emt 0:16:00]} 18. Nxd4 {[%emt 0:00:10]} c5 {[%emt 0:00:26]} 19. Nf3 {[%emt 0:05:28]} Ne5 {[%emt 0:06:44]} 20. Nxe5 {[%emt 0:13:26]} Bxe5 {[%emt 0:00:07]} 21. Nd5 {[%emt 0:00:17]} Bxd5 {[%emt 0:05:21]} 22. exd5 {[%emt 0:00:14]} Qd6 {[%emt 0:00:25]} 23. Rxe5 {[%emt 0:09:06]} Rxe5 {[%emt 0:00:05]} 24. Bxe5 {[%emt 0:00:14]} Qxe5 {[%emt 0:00:05]} 25. Rc1 {[%emt 0:00:25]} Rc8 {[%emt 0:01:10]} 26. Qd2 {[%emt 0:01:14]} Qd6 {[%emt 0:01:45]} 27. a4 {[%emt 0:00:40]} Kg7 {[%emt 0:03:58]} 28. axb5 {[%emt 0:05:23]} axb5 {[%emt 0:00:02]} 29. Qa5 {[%emt 0:01:12]} b4 {[%emt 0:02:08]} 30. Qb5 {[%emt 0:00:56]} Rc7 {[%emt 0:03:36]} 31. Qc4 {[%emt 0:02:53]} Qe5 {[%emt 0:03:03]} 32. Kf1 {[%emt 0:03:01]} h5 {[%emt 0:00:18]} 33. Re1 {[%emt 0:00:43]} Qd6 {[%emt 0:00:06]} 34. h3 {[%emt 0:02:34]} Re7 {[%emt 0:00:13]} 35. Rc1 {[%emt 0:00:50]} Rc7 {[%emt 0:00:53]} 36. Ra1 {[%emt 0:01:05]} Qe5 {[%emt 0:01:29]} 37. Re1 {[%emt 0:00:03]} Qd6 {[%emt 0:00:05]} 38. Rc1 {[%emt 0:01:04]} Qe5 {[%emt 0:00:32]} 39. Re1 {[%emt 0:01:06]} Qd6 {[%emt 0:00:03]} 40. Rc1 {[%emt 0:00:00]} Qe5 {[%emt 0:00:00]} 1/2-1/2

[Event "6th Cattolica Open 2019"]
[Site "Cattolica"]
[Date "2019.06.14"]
[Round "9.10"]
[White "Kjartansson, Gudmundur"]
[Black "Guerrero Sierra, Juan Carlos"]
[Result "1-0"]
[ECO "A16"]
[WhiteElo "2459"]
[BlackElo "2290"]
[Annotator "ChessBase"]
[PlyCount "143"]
[EventDate "2019.06.08"]
[EventType "swiss"]
[EventCountry "ITA"]
[SourceTitle "playchess.com"]
[Source "ChessBase"]
[SourceQuality "1"]
[TimeControl "40/5400+30:900+30"]

1. c4 {[%emt 1:30:30]} Nf6 {[%emt 0:06:33]} 2. Nc3 {[%emt 0:00:00]} d5 {[%emt 0:00:27]} 3. cxd5 {[%emt 0:00:00]} Nxd5 {[%emt 0:00:11]} 4. g3 {[%emt 0:00:00]} g6 {[%emt 0:00:25]} 5. Bg2 {[%emt 0:00:00]} Nb6 {[%emt 0:00:08]} 6. d3 {[%emt 0:00:00]} Bg7 {[%emt 0:00:21]} 7. Be3 {[%emt 0:00:00]} O-O {[%emt 0:00:31]} 8. Qd2 {[%emt 0:00:00]} Re8 {[%emt 0:00:16]} 9. h4 {[%emt 0:00:00]} h5 {[%emt 0:00:54]} 10. Nf3 {[%emt 0:00:00]} Nc6 {[%emt 0:00:51]} 11. Rc1 {[%emt 0:00:00]} e5 {[%emt 0:02:27]} 12. O-O {[%emt 0:00:00]} Nd4 {[%emt 0:01:09]} 13. Bh6 {[%emt 0:00:00]} c6 {[%emt 0:04:48]} 14. Nxd4 {[%emt 0:00:00]} exd4 {[%emt 0:02:21]} 15. Ne4 {[%emt 0:00:00]} Nd5 {[%emt 0:01:17]} 16. Bxg7 {[%emt 0:00:00]} Kxg7 {[%emt 0:01:08]} 17. Rc4 {[%emt 0:00:00]} Nb6 {[%emt 0:08:01]} 18. Rc5 {[%emt 0:00:00]} Be6 {[%emt 0:01:13]} 19. b3 {[%emt 0:00:00]} Bd5 {[%emt 0:11:39]} 20. Qf4 {[%emt 0:00:00]} Bxe4 {[%emt 0:02:08]} 21. Bxe4 {[%emt 0:00:00]} Qb8 {[%emt 0:02:09]} 22. Qxb8 {[%emt 0:00:00]} Raxb8 {[%emt 0:00:57]} 23. Ra5 {[%emt 0:00:00]} a6 {[%emt 0:01:53]} 24. Rc1 {[%emt 0:00:00]} f5 {[%emt 0:00:53]} 25. Bf3 {[%emt 0:00:00]} Kf6 {[%emt 0:00:28]} 26. Kf1 {[%emt 0:00:00]} Re5 {[%emt 0:09:47]} 27. Rxe5 {[%emt 0:00:00]} Kxe5 {[%emt 0:00:26]} 28. Ke1 {[%emt 0:00:00]} Kd6 {[%emt 0:02:54]} 29. Kd2 {[%emt 0:00:00]} Re8 {[%emt 0:05:42]} 30. e3 {[%emt 0:00:00]} dxe3+ {[%emt 0:01:01]} 31. fxe3 {[%emt 0:00:00]} Nd7 {[%emt 0:00:14]} 32. d4 {[%emt 0:00:00]} Nf6 {[%emt 0:00:52]} 33. b4 {[%emt 0:00:00]} Nd7 {[%emt 0:06:08]} 34. Kd3 {[%emt 0:00:00]} Nf6 {[%emt 0:00:50]} 35. a4 {[%emt 0:00:00]} Ne4 {[%emt 0:02:13]} 36. Bxe4 {[%emt 0:00:15]} fxe4+ {[%emt 0:00:05]} 37. Ke2 {[%emt 0:00:27]} Rf8 {[%emt 0:00:24]} 38. g4 {[%emt 0:04:05]} Rh8 {[%emt 0:08:06]} 39. g5 {[%emt 0:07:42]} Rf8 {[%emt 0:08:24]} 40. Rc5 {[%emt 0:00:00]} Re8 {[%emt 0:00:00]} 41. a5 {[%emt 0:01:21]} b6 {[%emt 0:06:26]} 42. Re5 {[%emt 0:13:22]} Rb8 {[%emt 0:05:27]} 43. Rxe4 {[%emt 0:00:34]} bxa5 {[%emt 0:00:22]} 44. bxa5 {[%emt 0:00:03]} Rb5 {[%emt 0:00:13]} 45. Rf4 {[%emt 0:00:21]} Rxa5 {[%emt 0:00:20]} 46. Rf6+ {[%emt 0:00:11]} Kd5 {[%emt 0:00:05]} 47. Rxg6 {[%emt 0:00:33]} Ra2+ {[%emt 0:00:26]} 48. Kf3 {[%emt 0:00:30]} Rh2 {[%emt 0:00:28]} 49. e4+ {[%emt 0:06:05]} Kxd4 {[%emt 0:00:40]} 50. Rxc6 {[%emt 0:00:06]} Rxh4 {[%emt 0:00:28]} 51. Rxa6 {[%emt 0:01:00]} Ke5 {[%emt 0:00:42]} 52. Ra5+ {[%emt 0:02:20]} Ke6 {[%emt 0:00:20]} 53. Rf5 {[%emt 0:00:37]} Rg4 {[%emt 0:00:23]} 54. Ke3 {[%emt 0:00:50]} h4 {[%emt 0:00:14]} 55. Kf3 {[%emt 0:00:24]} Rg1 {[%emt 0:00:18]} 56. Kf4 {[%emt 0:00:22]} Ke7 {[%emt 0:03:41]} 57. Ra5 {[%emt 0:00:58]} h3 {[%emt 0:00:24]} 58. Ra7+ {[%emt 0:00:08]} Ke6 {[%emt 0:00:06]} 59. Ra6+ {[%emt 0:00:08]} Kf7 {[%emt 0:01:19]} 60. Rf6+ {[%emt 0:01:12]} Kg7 {[%emt 0:00:42]} 61. Rh6 {[%emt 0:00:04]} Rf1+ {[%emt 0:00:15]} 62. Kg4 {[%emt 0:00:59]} Re1 {[%emt 0:01:32]} 63. Kf5 {[%emt 0:00:17]} Rf1+ {[%emt 0:00:09]} 64. Ke6 {[%emt 0:00:25]} Rg1 {[%emt 0:00:11]} 65. Rxh3 {[%emt 0:00:19]} Rxg5 {[%emt 0:00:08]} 66. e5 {[%emt 0:00:02]} Rg1 {[%emt 0:00:48]} 67. Ke7 {[%emt 0:00:16]} Kg8 {[%emt 0:08:01]} 68. e6 {[%emt 0:00:18]} Rg7+ {[%emt 0:00:27]} 69. Ke8 {[%emt 0:00:43]} Rg1 {[%emt 0:00:50]} 70. e7 {[%emt 0:00:12]} Kg7 {[%emt 0:00:05]} 71. Rd3 {[%emt 0:01:09]} Ra1 {[%emt 0:00:15]} 72. Kd7 {[%emt 0:01:25]} 1-0

[Event "6th Cattolica Open 2019"]
[Site "Cattolica"]
[Date "2019.06.14"]
[Round "9.11"]
[White "Can, Isik"]
[Black "Strikovic, Aleksa"]
[Result "1/2-1/2"]
[ECO "B07"]
[WhiteElo "2379"]
[BlackElo "2503"]
[Annotator "ChessBase"]
[PlyCount "81"]
[EventDate "2019.06.08"]
[EventType "swiss"]
[EventCountry "ITA"]
[SourceTitle "playchess.com"]
[Source "ChessBase"]
[SourceQuality "1"]
[TimeControl "40/5400+30:900+30"]

1. e4 {[%emt 0:00:42]} d6 {[%emt 0:03:58]} 2. d4 {[%emt 0:00:07]} Nf6 {[%emt 0:00:07]} 3. Nc3 {[%emt 0:00:04]} e5 {[%emt 0:00:06]} 4. Nge2 {[%emt 0:00:03]} Nbd7 {[%emt 0:00:41]} 5. f3 {[%emt 0:00:09]} h5 {[%emt 0:00:05]} 6. Be3 {[%emt 0:00:26]} c6 {[%emt 0:00:06]} 7. Qd2 {[%emt 0:00:45]} Be7 {[%emt 0:00:27]} 8. O-O-O {[%emt 0:00:47]} g6 {[%emt 0:00:12]} 9. Kb1 {[%emt 0:12:56]} a6 {[%emt 0:12:12]} 10. dxe5 {[%emt 0:29:58]} dxe5 {[%emt 0:00:40]} 11. g3 {[%emt 0:00:25]} Qc7 {[%emt 0:00:44]} 12. h4 {[%emt 0:02:44]} Nc5 {[%emt 0:02:06]} 13. Nc1 {[%emt 0:01:44]} b5 {[%emt 0:04:17]} 14. Qf2 {[%emt 0:04:18]} Nb7 {[%emt 0:11:48]} 15. Bb6 {[%emt 0:08:03]} Qb8 {[%emt 0:00:04]} 16. Nb3 {[%emt 0:00:11]} Nd7 {[%emt 0:07:14]} 17. Be3 {[%emt 0:12:42]} a5 {[%emt 0:09:48]} 18. Bh3 {[%emt 0:00:51]} Nf8 {[%emt 0:03:06]} 19. Bxc8 {[%emt 0:04:29]} Qxc8 {[%emt 0:00:04]} 20. Nc5 {[%emt 0:00:05]} Qc7 {[%emt 0:14:31]} 21. Nxb7 {[%emt 0:04:19]} Qxb7 {[%emt 0:01:10]} 22. f4 {[%emt 0:04:15]} Nd7 {[%emt 0:02:18]} 23. f5 {[%emt 0:04:19]} Nf6 {[%emt 0:01:26]} 24. Bg5 {[%emt 0:02:45]} Ng4 {[%emt 0:08:43]} 25. Qd2 {[%emt 0:03:21]} f6 {[%emt 0:02:13]} 26. Be3 {[%emt 0:01:18]} Rd8 {[%emt 0:08:06]} 27. Qe2 {[%emt 0:00:12]} O-O {[%emt 0:00:06]} 28. fxg6 {[%emt 0:00:35]} Kg7 {[%emt 0:00:58]} 29. Rxd8 {[%emt 0:01:09]} Rxd8 {[%emt 0:00:16]} 30. Nd1 {[%emt 0:00:05]} Kxg6 {[%emt 0:04:09]} 31. Nf2 {[%emt 0:00:05]} Nxf2 {[%emt 0:02:46]} 32. Qxf2 {[%emt 0:01:09]} Qd7 {[%emt 0:00:07]} 33. Qf3 {[%emt 0:00:22]} a4 {[%emt 0:00:47]} 34. Rg1 {[%emt 0:00:50]} Qh3 {[%emt 0:00:41]} 35. a3 {[%emt 0:00:31]} c5 {[%emt 0:00:44]} 36. Qf2 {[%emt 0:00:42]} Qc8 {[%emt 0:00:33]} 37. Qf3 {[%emt 0:00:23]} Qh3 {[%emt 0:00:14]} 38. Qf2 {[%emt 0:00:32]} c4 {[%emt 0:00:43]} 39. Rf1 {[%emt 0:00:32]} c3 {[%emt 0:00:23]} 40. bxc3 {[%emt 0:00:00]} Rc8 {[%emt 0:00:00]} 41. Kb2 {[%emt 0:08:54]} 1/2-1/2